bitfinex-derivatives/quotes_SOLF0:USTF0_20241029
["timestamp","ask_amount","ask_price","bid_price","bid_amount"]
[1730185582170,3.92,180.69,180.57,2.6167]
[1730185582171,5.95909815,180.68,180.63,2.77]
[1730185582364,5.95909815,180.68,180.61,5.95909815]
[1730185582768,8.72849815,180.68,180.63,2.77]
[1730185583183,8.72849815,180.68,180.63,5.95909815]
[1730185584079,8.72849815,180.68,180.6,2.7705]
[1730185584280,8.72849815,180.68,180.61,5.95909815]
[1730185584772,8.72849815,180.68,180.63,2.77]
[1730185585571,8.72849815,180.68,180.64,2.7699]
[1730185586475,5.95909815,180.65,180.57,2.6167]
[1730185586676,3.94,180.64,180.58,5.95909815]
[1730185587575,3.94,180.64,180.61,2.7703]
[1730185587979,3.94,180.64,180.6,5.95909815]
[1730185588179,3.94,180.64,180.62,2.7703]
[1730185588769,3.94,180.64,180.63,2.7701]
[1730185589174,3.94,180.65,180.61,5.95909815]
[1730185589576,3.94,180.66,180.63,5.95909815]
[1730185589772,3.94,180.67,180.63,5.95909815]
[1730185589976,3.94,180.67,180.65,2.7697]
[1730185598675,3.94,180.67,180.66,2.7697]
[1730185598878,3.94,180.67,180.64,5.95909815]
[1730185600190,3.94,180.67,180.65,2.7697]
[1730185601087,3.94,180.68,180.65,2.7697]
[1730185601684,3.94,180.68,180.64,5.95909815]
[1730185601889,3.94,180.68,180.66,2.7697]
[1730185602277,2.7692,180.69,180.68,2.7693]
[1730185602278,3.94,180.69,180.68,2.7693]
[1730185602991,3.94,180.71,180.69,2.7691]
[1730185604591,3.94,180.71,180.66,5.95909815]
[1730185604894,5.95909815,180.7,180.67,2.7695]
[1730185606390,8.72819815,180.7,180.67,2.7695]
[1730185607497,8.72819815,180.7,180.66,2.7696]
[1730185607498,5.95909815,180.68,180.66,2.7696]
[1730185607688,8.72849815,180.68,180.62,5.95909815]
[1730185607887,3.94,180.67,180.62,5.95909815]
[1730185608798,3.94,180.67,180.65,2.7698]
[1730185611596,3.94,180.67,180.66,2.7697]
[1730185616397,5.95909815,180.68,180.66,2.7697]
[1730185616597,3.94,180.67,180.66,2.7697]
[1730185621211,3.94,180.67,180.62,5.95909815]
[1730185621413,3.94,180.67,180.65,2.7698]
[1730185622415,3.94,180.69,180.67,2.7694]
[1730185622612,3.94,180.69,180.64,5.95909815]
[1730185622811,3.94,180.69,180.66,2.7695]
[1730185623006,3.94,180.69,180.64,5.95909815]
[1730185623206,3.94,180.69,180.58,3.94]
[1730185623414,5.95909815,180.67,180.57,2.6167]
[1730185623608,8.72869815,180.67,180.57,6.5567]
[1730185623813,3.94,180.69,180.63,5.95909815]
[1730185624007,3.6636,180.72,180.64,5.95909815]
[1730185624213,12.66809815,180.71,180.64,5.95909815]
[1730185624514,9.89909815,180.71,180.64,5.95909815]
[1730185624710,2.7691,180.7,180.64,5.95909815]
[1730185624909,2.7691,180.7,180.66,2.7696]
[1730185625101,8.72819815,180.7,180.66,2.7696]
[1730185627617,3.94,180.69,180.66,2.7696]
[1730185629725,2.7695,180.67,180.64,2.77]
[1730185629921,5.95909815,180.68,180.61,5.95909815]
[1730185630722,2.7696,180.67,180.63,2.7701]
[1730185631022,2.7696,180.67,180.61,5.95909815]
[1730185631221,5.95909815,180.68,180.62,5.95909815]
[1730185631423,2.7698,180.66,180.63,2.77]
[1730185632516,8.72909815,180.64,180.61,2.7703]
[1730185632721,12.66909815,180.64,180.61,2.7703]
[1730185633823,5.95909815,180.63,180.57,5.95909815]
[1730185634024,5.95909815,180.63,180.59,2.7706]
[1730185634025,2.7703,180.62,180.59,2.7706]
[1730185634625,2.7707,180.59,180.55,2.7712]
[1730185634827,2.7707,180.59,180.53,5.95909815]
[1730185634828,12.66979815,180.59,180.53,5.95909815]
[1730185635128,9.89909815,180.59,180.5,1.272]
[1730185635325,8.73019815,180.57,180.53,2.7715]
[1730185635521,8.73019815,180.57,180.51,5.95909815]
[1730185636418,5.95909815,180.57,180.54,2.7715]
[1730185640727,2.7709,180.58,180.54,2.7715]
[1730185643142,5.95909815,180.57,180.54,2.7715]
[1730185645331,2.7709,180.58,180.54,2.7715]
[1730185645843,8.72999815,180.58,180.54,2.7715]
[1730185646027,2.7707,180.59,180.55,2.7712]
[1730185646233,3.96,180.58,180.55,2.7712]
[1730185646739,6.731,180.58,180.54,2.7715]
[1730185646940,12.69009815,180.58,180.54,2.7715]
[1730185647740,5.95909815,180.57,180.52,2.7717]
[1730185648438,2.7713,180.56,180.52,2.7717]
[1730185648641,2.7713,180.56,180.53,2.7716]
[1730185649539,3.96,180.58,180.52,5.95909815]
[1730185649746,3.96,180.58,180.54,5.95909815]
[1730185650143,6.731,180.58,180.54,8.73059815]
[1730185653540,3.96,180.61,180.59,2.7707]
[1730185653742,3.96,180.61,180.59,8.72979815]
[1730185655348,3.96,180.61,180.59,5.95909815]
[1730185655947,3.96,180.61,180.58,8.72989815]
[1730185663554,3.96,180.61,180.59,5.95909815]
[1730185663762,12.5400639,180.71,180.59,5.95909815]
[1730185663763,1.1833,180.7,180.59,5.95909815]
[1730185663964,5.95909815,180.67,180.6,5.95909815]
[1730185664157,5.95909815,180.67,180.54,3.96]
[1730185664364,2.77,180.65,180.62,8.72929815]
[1730185666056,6.7298,180.66,180.64,5.95909815]
[1730185669765,6.7298,180.66,180.62,2.7702]
[1730185669964,3.96,180.66,180.62,2.7702]
[1730185670167,2.7698,180.65,180.62,8.72929815]
[1730185673673,2.7698,180.65,180.62,2.7702]
[1730185680574,2.7702,180.63,180.59,2.7706]
[1730185680877,2.7702,180.63,180.59,5.95909815]
[1730185681573,2.7702,180.63,180.6,2.7705]
[1730185682374,2.7703,180.62,180.59,2.7707]
[1730185682673,6.6903,180.62,180.59,2.7707]
[1730185683372,2.7704,180.61,180.58,2.7708]
[1730185684478,6.6903,180.62,180.58,2.7708]
[1730185684778,3.92,180.62,180.58,2.7708]
[1730185685180,9.87909815,180.62,180.58,2.7708]
[1730185685772,2.7705,180.61,180.57,5.95909815]
[1730185685964,5.95909815,180.6,180.53,5.95909815]
[1730185686371,5.95909815,180.58,180.54,2.7715]
[1730185686576,9.87909815,180.58,180.54,2.7715]
[1730185686771,9.87909815,180.58,180.52,5.95909815]
[1730185686967,2.7712,180.56,180.52,8.73089815]
[1730185687564,5.95909815,180.56,180.51,2.7719]
[1730185687765,5.95909815,180.55,180.46,2.4573]
[1730185687969,3.92,180.54,180.48,5.95909815]
[1730185688176,2.7717,180.53,180.49,2.7722]
[1730185691079,2.7717,180.53,180.5,2.7721]
[1730185695883,3.92,180.54,180.5,2.7721]
[1730185696084,3.92,180.54,180.5,5.95909815]
[1730185696385,3.92,180.58,180.53,5.95909815]
[1730185696685,6.691,180.58,180.53,5.95909815]
[1730185697488,3.92,180.58,180.55,5.95909815]
[1730185697690,3.92,180.58,180.56,2.7711]
[1730185697990,3.92,180.58,180.55,5.95909815]
[1730185698980,3.92,180.58,180.55,8.73039815]
[1730185703488,5.95909815,180.57,180.49,1.2623]
[1730185703687,5.95909815,180.57,180.51,5.95909815]
[1730185703896,5.95909815,180.55,180.49,5.95909815]
[1730185704192,6.7115,180.54,180.5,2.772]
[1730185704392,6.7115,180.54,180.49,5.95909815]
[1730185705185,3.94,180.54,180.51,2.7719]
[1730185711899,3.94,180.54,180.52,2.7717]
[1730185714192,3.94,180.54,180.53,2.7717]
[1730185715600,5.95909815,180.58,180.51,5.95909815]
[1730185715798,3.94,180.57,180.54,2.7715]
[1730185716096,3.94,180.57,180.54,5.95909815]
[1730185716304,3.94,180.57,180.55,2.7712]
[1730185716694,4.0149,180.61,180.56,5.95909815]
[1730185716903,3.94,180.59,180.56,8.73009815]
[1730185720508,3.94,180.59,180.58,2.7709]
[1730185723407,59.86,180.63,180.49,1.2921]
[1730185723408,2.7701,180.63,180.6,2.7705]
[1730185723610,3.94,180.62,180.59,5.95909815]
[1730185723994,3.94,180.62,180.59,8.72969815]
[1730185725607,3.94,180.62,180.61,8.72949815]
[1730185725808,2.5446,180.65,180.61,8.72949815]
[1730185726012,3.94,180.64,180.61,8.72949815]
[1730185726510,6.71,180.64,180.61,8.72949815]
[1730185728412,2.77,180.64,180.61,8.72949815]
[1730185728609,3.94,180.63,180.61,2.7704]
[1730185740315,3.94,180.63,180.61,8.72949815]
[1730185740717,2.7697,180.66,180.62,2.7702]
[1730185740916,6.6897,180.66,180.62,5.95909815]
[1730185741218,2.7697,180.66,180.62,5.95909815]
[1730185742322,2.7697,180.66,180.63,2.77]
[1730185742623,12.59004726,180.71,180.64,5.95909815]
[1730185742928,3.92,180.69,180.66,2.7696]
[1730185743130,6.6893,180.69,180.66,2.7696]
[1730185743721,6.6893,180.69,180.65,5.95909815]
[1730185743722,3.92,180.69,180.65,5.95909815]
[1730185743916,1.2374,180.74,180.67,5.95909815]
[1730185743917,5.95909815,180.73,180.67,5.95909815]
[1730185744224,3.92,180.72,180.67,5.95909815]
[1730185744411,3.92,180.72,180.69,5.95909815]
[1730185744825,6.6888,180.72,180.68,8.72829815]
[1730185749324,12.64789815,180.72,180.68,8.72829815]
[1730185749927,6.6888,180.72,180.68,8.72839815]
[1730185751623,6.6888,180.72,180.68,2.7693]
[1730185754424,2.7689,180.71,180.68,2.7693]
[1730185755121,2.7691,180.7,180.67,2.7694]
[1730185755327,2.7691,180.7,180.67,8.72849815]
[1730185756831,3.92,180.72,180.67,5.95909815]
[1730185757032,5.95909815,180.68,180.59,2.5071]
[1730185757333,9.87909815,180.68,180.62,5.95909815]
[1730185757533,6.6894,180.68,180.59,2.5071]
[1730185757727,3.92,180.68,180.65,5.95909815]
[1730185758134,3.92,180.68,180.66,2.7696]
[1730185758935,2.7691,180.7,180.66,2.7696]
[1730185760332,9.87909815,180.71,180.66,2.7696]
[1730185760527,2.7692,180.69,180.66,2.7696]
[1730185761344,2.7695,180.68,180.64,2.7698]
[1730185761638,5.95909815,180.68,180.64,2.7698]
[1730185762241,2.7696,180.67,180.64,2.7698]
[1730185762839,5.95909815,180.68,180.61,5.95909815]
[1730185763036,2.7697,180.66,180.63,2.7701]
[1730185764435,8.72879815,180.66,180.63,2.7701]
[1730185764641,2.77,180.64,180.6,8.72959815]
[1730185764832,2.77,180.64,180.6,5.95909815]
[1730185765429,2.77,180.64,180.61,2.7703]
[1730185765837,2.7699,180.65,180.61,2.7703]
[1730185766642,8.72899815,180.65,180.61,2.7703]
[1730185769039,5.95909815,180.65,180.61,2.7703]
[1730185769246,2.7701,180.64,180.6,2.7705]
[1730185769445,5.95909815,180.63,180.58,5.95909815]
[1730185769840,5.95909815,180.63,180.59,2.7706]
[1730185769841,8.72929815,180.63,180.59,2.7706]
[1730185770038,5.95909815,180.62,180.5,337.2819]
[1730185770337,5.95909815,180.62,180.55,5.95909815]
[1730185770746,2.7705,180.61,180.57,2.7709]
[1730185773353,2.7708,180.59,180.55,2.7712]
[1730185773549,6.6908,180.59,180.55,2.7712]
[1730185774050,6.6908,180.59,180.56,2.7712]
[1730185781155,3.92,180.59,180.56,2.7712]
[1730185781360,3.92,180.59,180.56,5.95909815]
[1730185781749,2.7705,180.61,180.56,5.95909815]
[1730185781956,3.92,180.61,180.58,5.95909815]
[1730185782558,3.92,180.61,180.59,2.7707]
[1730185788166,2.771,180.58,180.55,2.7713]
[1730185788370,5.95909815,180.6,180.55,2.7713]
[1730185789174,2.7708,180.59,180.55,2.7713]
[1730185793268,8.72989815,180.59,180.55,2.7713]
[1730185797574,2.771,180.57,180.54,2.7715]
[1730185797780,9.87909815,180.57,180.5,1.2819]
[1730185797980,9.87909815,180.57,180.51,5.95909815]
[1730185798381,12.65019815,180.57,180.54,2.7714]
[1730185798870,3.92,180.57,180.53,5.95909815]
[1730185799071,3.92,180.57,180.55,2.7712]
[1730185799475,3.92,180.57,180.56,2.7712]
[1730185800888,3.6649,180.66,180.55,5.95909815]
[1730185801073,5.95909815,180.61,180.55,5.95909815]
[1730185801273,3.92,180.6,180.55,5.95909815]
[1730185801477,3.92,180.6,180.57,2.7709]
[1730185802080,8.72959815,180.61,180.57,2.7709]
[1730185802280,3.92,180.6,180.57,2.7709]
[1730185803683,6.6906,180.6,180.57,2.7709]
[1730185804286,5.95909815,180.59,180.5,1.2819]
[1730185804587,8.72989815,180.59,180.54,5.95909815]
[1730185804986,8.72989815,180.59,180.56,2.7711]
[1730185805386,13.73054666,180.66,180.58,5.95909815]
[1730185805685,13.73054666,180.66,180.5,1.2819]
[1730185805686,9.87909815,180.65,180.6,5.95909815]
[1730185805881,9.87909815,180.65,180.58,5.95909815]
[1730185806080,8.72929815,180.63,180.59,2.7706]
[1730185806282,5.95909815,180.62,180.56,5.95909815]
[1730185806582,6.6904,180.61,180.57,2.7709]
[1730185806979,6.6904,180.61,180.56,5.95909815]
[1730185808291,6.6904,180.61,180.58,2.7709]
[1730185809484,3.92,180.61,180.58,2.7709]
[1730185812493,2.7706,180.6,180.57,8.73009815]
[1730185814400,3.92,180.61,180.53,3.92]
[1730185814599,5.95909815,180.6,180.5,5.2019]
[1730185814900,3.92,180.61,180.5,1.2819]
[1730185815098,3.92,180.61,180.49,7.17769815]
[1730185815099,5.95909815,180.55,180.49,7.17769815]
[1730185815294,9.87909815,180.55,180.49,7.17769815]
[1730185815490,2.7715,180.54,180.5,2.7721]
[1730185815798,2.7715,180.54,180.45,3.92]
[1730185815999,9.87909815,180.55,180.49,5.95909815]
[1730185816204,12.65049815,180.55,180.51,2.7718]
[1730185816607,9.87909815,180.55,180.51,2.7718]
[1730185817005,12.65049815,180.55,180.51,2.7718]
[1730185817207,5.95909815,180.53,180.5,2.7721]
[1730185817399,5.95909815,180.53,180.43,3.6751]
[1730185817699,5.95909815,180.53,180.47,5.95909815]
[1730185818298,12.65059815,180.55,180.5,2.7721]
[1730185818705,12.65059815,180.55,180.51,2.7719]
[1730185819999,12.65059815,180.55,180.43,3.6751]
[1730185820000,9.87909815,180.55,180.43,3.6751]
[1730185820212,3.92,180.55,180.52,2.7717]
[1730185831115,6.6914,180.55,180.52,2.7717]
[1730185832004,12.65049815,180.55,180.52,2.7717]
[1730185832812,5.95909815,180.53,180.43,3.6751]
[1730185833118,8.73079815,180.53,180.47,5.95909815]
[1730185833508,8.73079815,180.53,180.5,2.772]
[1730185841114,5.95909815,180.53,180.47,5.95909815]
[1730185841414,3.92,180.55,180.49,5.95909815]
[1730185841809,6.6914,180.55,180.49,5.95909815]
[1730185842718,6.6914,180.55,180.52,2.7717]
[1730185843119,3.92,180.55,180.52,2.7717]
[1730185843420,3.92,180.55,180.54,2.7714]
[1730185845112,3.92,180.55,180.5,5.95909815]
[1730185845319,6.6915,180.55,180.49,5.95909815]
[1730185845516,5.95909815,180.54,180.49,5.95909815]
[1730185845815,9.87909815,180.54,180.49,5.95909815]
[1730185846018,9.87909815,180.54,180.51,2.7719]
[1730185847321,12.65069815,180.54,180.5,2.7721]
[1730185847910,8.73089815,180.53,180.49,2.7723]
[1730185848115,5.95909815,180.53,180.47,5.95909815]
[1730185848717,2.7719,180.52,180.48,2.7724]
[1730185848929,5.95909815,180.53,180.48,2.7724]
[1730185850316,2.7721,180.51,180.48,2.7724]
[1730185851018,3.92,180.5,180.48,2.7724]
[1730185856322,3.92,180.5,180.49,2.7721]
[1730185857128,10.10423813,180.59,180.49,5.95909815]
[1730185857315,10.10423813,180.59,180.52,5.95909815]
[1730185857316,9.87909815,180.58,180.52,5.95909815]
[1730185859422,2.7711,180.57,180.54,2.7715]
[1730185860327,2.7711,180.57,180.52,5.95909815]
[1730185860328,2.7711,180.57,180.53,2.7716]
[1730185860624,9.87909815,180.58,180.53,5.95909815]
[1730185860625,3.92,180.56,180.53,5.95909815]
[1730185860826,3.92,180.56,180.54,2.7714]
[1730185861221,10.10423813,180.63,180.54,5.95909815]
[1730185861417,9.87909815,180.62,180.57,5.95909815]
[1730185861622,9.87909815,180.62,180.55,5.95909815]
[1730185861623,5.95909815,180.61,180.55,5.95909815]
[1730185861821,8.72959815,180.61,180.57,2.771]
[1730185862531,2.7709,180.58,180.55,2.7713]
[1730185862727,6.6909,180.58,180.55,2.7713]
[1730185862923,3.92,180.58,180.55,2.7713]
[1730185863120,9.87909815,180.58,180.49,3.92]
[1730185863320,9.87909815,180.58,180.51,5.95909815]
[1730185863529,9.87909815,180.58,180.46,3.92]
[1730185863819,5.95909815,180.54,180.46,3.92]
[1730185864026,5.95909815,180.53,180.46,5.95909815]
[1730185864226,8.73079815,180.53,180.49,2.7721]
[1730185864725,8.73079815,180.53,180.44,3.92]
[1730185864924,2.7719,180.52,180.48,2.7724]
[1730185865117,3.92,180.54,180.43,2.4669]
[1730185865118,5.95909815,180.51,180.43,2.4669]
[1730185865323,5.95909815,180.49,180.43,8.42599815]
[1730185866136,5.95909815,180.49,180.46,2.7726]
[1730185866723,2.7724,180.48,180.44,2.773]
[1730185867035,5.95909815,180.47,180.4,5.95909815]
[1730185867231,3.92,180.46,180.4,5.95909815]
[1730185867430,3.92,180.46,180.43,2.7731]
[1730185868233,3.92,180.46,180.41,5.95909815]
[1730185868234,5.95909815,180.45,180.41,2.7733]
[1730185868436,5.95909815,180.45,180.39,5.95909815]
[1730185869535,5.95909815,180.43,180.39,5.95909815]
[1730185869734,3.92,180.42,180.37,8.47299815]
[1730185869933,3.92,180.42,180.39,2.7737]
[1730185870534,3.92,180.42,180.4,2.7736]
[1730185871941,5.95909815,180.41,180.17,31.6328071]
[1730185872234,5.95909815,180.41,180.34,5.95909815]
[1730185872635,3.92,180.42,180.36,5.95909815]
[1730185872940,2.5793,180.5,180.31,1.2182]
[1730185872941,3.92,180.41,180.38,5.95909815]
[1730185873336,3.92,180.41,180.4,2.7736]
[1730185873733,5.95909815,180.44,180.38,5.95909815]
[1730185874032,3.92,180.43,180.38,5.95909815]
[1730185874239,3.92,180.43,180.39,2.7737]
[1730185874534,3.92,180.43,180.16,16.4600845]
[1730185874739,1.1913,180.49,180.15,8.73649815]
[1730185874740,2.7756,180.28,180.15,8.73649815]
[1730185874946,5.95909815,180.24,180.17,5.95909815]
[1730185875133,5.95909815,180.24,180.09,2.78382297]
[1730185875134,4.26,180.23,180.1,1.2725]
[1730185875335,4.26,180.22,180.17,5.95909815]
[1730185875836,4.26,180.22,180.1,1.2725]
[1730185876234,4.26,180.22,180.17,5.95909815]
[1730185876445,4.26,180.22,180.14,9.3337727]
[1730185877245,4.26,180.22,180.14,12.1113727]
[1730185877540,4.26,180.21,180.14,9.3337727]
[1730185879236,4.26,180.21,180.15,2.7775]
[1730185881342,4.26,180.21,180.13,9.3337727]
[1730185882339,4.26,180.21,180.15,2.7775]
[1730185883043,72.9310727,180.27,180.14,9.3337727]
[1730185883242,2.776,180.25,180.17,2.777]
[1730185883939,2.7761,180.24,180.15,2.7773]
[1730185884143,2.7761,180.24,180.14,9.3337727]
[1730185884740,4.26,180.23,180.14,9.3337727]
[1730185885342,4.26,180.23,180.16,2.7773]
[1730185887647,4.26,180.23,180.17,2.7772]
[1730185888350,4.26,180.23,180.16,2.7772]
[1730185888549,4.26,180.23,180.14,9.3337727]
[1730185889150,4.26,180.23,180.17,2.7771]
[1730185890153,13.5937727,180.23,180.1,10.6062727]
[1730185891249,80.2373,180.27,179.86,2.44641829]
[1730185891250,9.3337727,180.15,179.86,2.44641829]
[1730185891443,72.9310727,180.27,180.06,9.3337727]
[1730185891444,4.26,180.14,180.06,9.3337727]
[1730185891650,2.81544122,180.23,180.06,9.3337727]
[1730185891651,4.26,180.13,180.06,9.3337727]
[1730185891851,2.7773,180.17,180.11,2.7781]
[1730185892056,9.3337727,180.18,180.11,2.7781]
[1730185892255,4.26,180.17,180.04,10.5966727]
[1730185892759,4.26,180.17,180.11,2.7781]
[1730185893250,2.7774,180.16,180.04,1.2629]
[1730185893456,2.7774,180.16,180.04,10.5966727]
[1730185894960,10.8552,180.17,180.11,2.7781]
[1730185895258,8.078,180.17,180.06,9.3337727]
[1730185896551,2.7776,180.15,180.1,2.7783]
[1730185896753,9.3337727,180.16,180.1,2.7783]
[1730185896957,9.3337727,180.16,180.05,1.2291]
[1730185896958,8.078,180.17,180.05,1.2291]
[1730185897260,2.7774,180.16,180.1,2.7781]
[1730185897659,8.078,180.17,180.12,2.7778]
[1730185898056,8.078,180.17,180.06,9.3337727]
[1730185898261,8.078,180.17,180.12,2.7778]
[1730185899149,8.078,180.17,180.09,2.7783]
[1730185899150,2.7776,180.15,180.09,2.7783]
[1730185899360,8.078,180.17,180.08,9.3337727]
[1730185899862,8.078,180.17,180.13,2.7777]
[1730185905455,8.078,180.17,180.05,1.2291]
[1730185905662,17.4117727,180.17,180.05,1.2291]
[1730185906059,4.46,180.16,180.06,9.3337727]
[1730185906253,4.46,180.16,180.09,2.7784]
[1730185906254,7.2375,180.16,180.09,2.7784]
[1730185906456,7.2375,180.16,180.06,9.3337727]
[1730185906861,4.46,180.16,180.06,9.3337727]
[1730185907465,2.7775,180.15,180.1,2.7781]
[1730185908568,8.75598705,180.15,180.1,2.7781]
[1730185910669,8.75598705,180.15,180.08,5.97848705]
[1730185910863,8.75648705,180.12,180.04,1.2629]
[1730185911066,5.97848705,180.12,180.05,5.97848705]
[1730185911266,5.97848705,180.14,180.09,2.7783]
[1730185911468,8.75618705,180.14,180.09,2.7783]
[1730185911862,5.97848705,180.14,180.07,5.97848705]
[1730185912064,8.75618705,180.14,180.1,2.7782]
[1730185912266,5.97848705,180.12,180.04,1.2629]
[1730185912466,5.97848705,180.1,180.04,1.2629]
[1730185912965,5.97848705,180.1,180.03,5.97848705]
[1730185913168,5.97848705,180.1,179.92,2.54453141]
[1730185913370,7.20141531,180.11,179.94,1.2963]
[1730185913672,5.97848705,180.02,179.96,5.97848705]
[1730185913871,5.97848705,180.02,180.01,2.7797]
[1730185914169,5.97848705,180.02,179.94,1.2963]
[1730185914369,5.97848705,180.02,179.99,2.7799]
[1730185915178,5.97848705,180.02,180.0,2.7797]
[1730185916568,4.46,180.04,180.0,2.7797]
[1730185917467,4.46,180.04,180.01,2.7796]
[1730185917975,4.46,180.04,180.02,2.7794]
[1730185921869,4.46,180.04,179.96,9.34457525]
[1730185922571,4.46,180.04,180.02,2.7794]
[1730185922970,9.34457525,180.08,179.96,9.34457525]
[1730185922971,4.46,180.06,179.99,2.78]
[1730185923166,4.46,180.08,179.98,9.34457525]
[1730185923366,4.46,180.08,179.99,1.2816]
[1730185923772,4.46,180.09,180.0,1.2967]
[1730185924270,4.46,180.09,180.06,2.7788]
[1730185924480,4.46,180.1,180.01,1.2997]
[1730185924874,4.46,180.1,180.06,2.7788]
[1730185925273,4.46,180.1,180.01,10.64427525]
[1730185925476,13.80457525,180.1,180.04,2.7792]
[1730185925873,2.7785,180.09,180.04,2.7792]
[1730185926571,2.7786,180.08,180.04,2.7792]
[1730185928784,12.12367525,180.05,180.0,2.7797]
[1730185929077,9.34457525,180.02,179.8,60.0]
[1730185929276,9.34457525,179.99,179.87,2.4342]
[1730185929489,13.80457525,179.99,179.87,19.07901284]
[1730185929671,4.46,179.99,179.89,9.34457525]
[1730185929873,4.46,179.99,179.9,1.2005]
[1730185930172,9.34457525,179.98,179.77,196.83749268]
[1730185930375,9.34457525,179.98,179.84,9.34457525]
[1730185930376,2.7803,179.97,179.84,9.34457525]
[1730185930581,4.46,179.96,179.84,9.34457525]
[1730185930778,4.46,179.96,179.83,4.46]
[1730185930973,4.46,179.96,179.83,13.80457525]
[1730185931376,4.46,179.96,179.9,2.7813]
[1730185931576,9.34457525,179.95,179.83,9.34457525]
[1730185931783,12.12527525,179.95,179.89,2.7815]
[1730185932078,4.46,179.94,179.85,9.34457525]
[1730185932284,4.46,179.94,179.9,2.7813]
[1730185932475,4.46,179.94,179.85,9.34457525]
[1730185932972,4.46,179.94,179.89,2.7815]
[1730185933171,4.46,179.94,179.85,9.34457525]
[1730185933371,4.46,179.94,179.82,13.80457525]
[1730185933577,4.46,179.94,179.82,4.46]
[1730185934185,2.781,179.93,179.86,2.7818]
[1730185934378,2.781,179.93,179.81,17.43927525]
[1730185934583,2.7811,179.92,179.86,2.7818]
[1730185934782,4.46,179.94,179.81,17.43927525]
[1730185935083,3.7519,179.96,179.91,2.7811]
[1730185935286,8.3119,179.96,179.86,9.34457525]
[1730185935474,8.3119,179.96,179.85,4.56]
[1730185935475,4.56,179.96,179.88,9.34457525]
[1730185935678,4.56,179.96,179.93,2.7809]
[1730185935881,4.56,179.96,179.88,9.34457525]
[1730185936183,4.56,179.96,179.89,1.2621]
[1730185937086,4.56,179.96,179.94,2.7807]
[1730185937585,4.56,179.96,179.92,2.7809]
[1730185937791,4.56,179.96,179.85,13.90457525]
[1730185938385,4.56,179.96,179.88,2.7816]
[1730185938586,4.56,179.96,179.85,13.90457525]
[1730185938895,7.3406,179.96,179.89,2.7814]
[1730185939484,7.3404,179.96,179.88,2.7816]
[1730185939681,7.3404,179.96,179.85,9.34457525]
[1730185939682,4.56,179.96,179.85,9.34457525]
[1730185940090,4.56,179.96,179.88,9.34457525]
[1730185940292,4.56,179.96,179.83,4.56]
[1730185940491,4.56,179.96,179.86,9.34457525]
[1730185940794,4.56,179.96,179.91,2.7811]
[1730185942180,4.56,179.96,179.86,9.34457525]
[1730185942181,4.56,179.96,179.92,2.781]
[1730185942782,4.56,179.96,179.93,2.7808]
[1730185943297,4.56,179.96,179.92,2.781]
[1730185945197,4.56,179.96,179.91,2.7812]
[1730185945601,4.56,179.96,179.86,9.34457525]
[1730185946192,4.56,179.96,179.95,2.7806]
[1730185946795,4.56,179.96,179.89,9.34457525]
[1730185947701,4.56,179.96,179.94,2.7807]
[1730185948201,4.56,179.96,179.89,9.34457525]
[1730185948403,4.56,179.96,179.95,2.7806]
[1730185949097,2.4386,180.03,179.88,2.4636]
[1730185949294,4.56,180.02,179.9,10.58537525]
[1730185949804,7.3395,180.02,179.97,2.7802]
[1730185949998,4.56,180.02,179.91,4.56]
[1730185950200,4.56,180.02,179.92,9.34457525]
[1730185950390,1.2401,180.04,179.92,9.34457525]
[1730185950591,1.2401,180.04,179.91,4.56]
[1730185950592,5.8001,180.04,179.91,4.56]
[1730185950794,2.4516,180.08,179.91,4.56]
[1730185950795,11.79617525,180.08,179.95,9.34457525]